fUST/lending_fUST_20250725
["ID","MTS","AMOUNT","RATE_DAILY","PERIOD"]
[374720469,1753428639458,-337.24,0.00019213,2]
[374720470,1753428639468,-500.0,0.00019217,2]
[374720471,1753428639478,-500.0,0.00019217,2]
[374720472,1753428639490,-1173.22257735,0.00019383,2]
[374720473,1753428639499,-500.0,0.00019491,2]
[374720474,1753428639509,-500.0,0.00019491,2]
[374720475,1753428639519,-472.22,0.00019519,2]
[374720476,1753428639529,-260.0,0.00019523,2]
[374720477,1753428639540,-1173.22257735,0.00019624,2]
[374720478,1753428639550,-500.0,0.00019765,2]
[374720479,1753428639560,-500.0,0.00019765,2]
[374720480,1753428639571,-1173.22257735,0.00019866,2]
[374720481,1753428639580,-252485.27380744,0.000199,2]
[374720482,1753428639591,-2205.6302447,0.00019914,2]
[374720483,1753428639600,-7214.73084693,0.0002,10]
[374720484,1753428639610,-500.0,0.00020039,2]
[374720485,1753428639619,-500.0,0.00020039,2]
[374720486,1753428639629,-360.0,0.00020071,2]
[374720487,1753428639638,-1173.22257735,0.00020107,2]
[374720488,1753428639648,-311.9,0.00020111,3]
[374720489,1753428639657,-593.759445,0.00020187,2]
[374720490,1753428639666,-587.0,0.000203,2]
[374720491,1753428639676,-500.0,0.00020313,2]
[374720492,1753428639686,-331.23961617,0.00020313,2]
[374720493,1753428639695,-1173.22257735,0.00020348,3]
[374720494,1753428639705,-944.44,0.00020448,2]
[374720495,1753428639715,-37379.97347876,0.00020462,2]
[374720508,1753428640865,-683.63590484,0.00019814,2]
[374720509,1753428640877,-3891.58000015,0.00019814,2]
[374720510,1753428640889,-468.87213272,0.00019814,2]
[374720512,1753428640900,-2316.81599215,0.00019814,2]
[374720514,1753428640909,-575.90963651,0.00020462,2]
[374720753,1753428643701,-747.48382428,0.00020462,2]
[374720755,1753428643713,-389.08634956,0.00020462,2]
[374722381,1753428801997,156.47206113,0.00016918,2]
[374722382,1753428835654,13.93749402,0.00017,2]
[374722383,1753428835682,1558.9612022,0.00017,2]
[374722384,1753428981353,-271.3300553,0.00017017,2]
[374722385,1753428985835,-28.6699447,0.00017017,2]
[374722386,1753428985863,-232.61007712,0.00017017,2]
[374722387,1753428992194,-342.65753389,0.00017017,2]
[374722388,1753429002628,-230.31301642,0.00017017,2]
[374722389,1753429007750,-270.75339891,0.00017017,2]
[374722390,1753429017558,-123.66597366,0.00017017,2]
[374722391,1753429017585,-191.87384549,0.00017017,2]
[374722392,1753429019950,-108.12615451,0.00017017,2]
[374722393,1753429019974,-65.29405554,0.00017017,2]
[374722394,1753429022170,-201.82385893,0.00017017,2]
[374722395,1753429024491,-388.94304139,0.00017017,2]
[374722396,1753429033655,-299.62556302,0.00017017,2]
[374722397,1753429039444,-244.31348112,0.00017017,2]
[374722398,1753429039468,-48.25931394,0.00017017,2]
[374722399,1753429048358,-222.58992832,0.00017017,2]
[374722400,1753429054218,-29.15075774,0.00017017,2]
[374722401,1753429054241,-224.30334188,0.00017018,2]
[374722402,1753429056721,-235.69665812,0.00017018,2]
[374722403,1753429056751,-61.56153629,0.00017018,2]
[374722404,1753429063539,-178.3929195,0.00017018,2]
[374722405,1753429073002,-277.41007168,0.00017018,2]
[374722406,1753429078915,-172.65967755,0.00017018,2]
[374722407,1753429089448,-215.24734396,0.00017017,2]
[374722408,1753429089949,601.602172,0.00013699,2]
[374722410,1753429095074,-84.75265604,0.00017017,2]
[374722411,1753429095100,-9.93025077,0.00017018,2]
[374722412,1753429095126,-332.21726365,0.00017018,2]
[374722413,1753429107094,-127.78273635,0.00017018,2]
[374722414,1753429107121,-152.8073676,0.00017018,2]
[374722415,1753429111633,-217.16195821,0.00017018,2]
[374722416,1753429121477,-194.70098397,0.00017017,2]
[374722417,1753429127240,-4.64897453,0.00017017,2]
[374722418,1753429127265,-293.67812895,0.00017017,2]
[374722419,1753429130044,-206.32187105,0.00017017,2]
[374722420,1753429130068,-84.020935,0.00017017,2]
[374722421,1753429136899,-190.89460009,0.00017017,2]
[374722422,1753429144389,-229.51730249,0.00017017,2]
[374722423,1753429152629,-70.48269751,0.00017017,2]
[374722424,1753429152656,-156.46663132,0.00017017,2]
[374722425,1753429152685,-1.58355685,0.00017017,2]
[374722426,1753429160145,-151.0,0.00017017,2]
[374722427,1753429166849,-153.81351077,0.00017017,2]
[374722428,1753429166872,-39.60177572,0.00017017,2]
[374722429,1753429169704,-160.05037009,0.00017017,2]
[374722430,1753429174459,-29.86515668,0.00017017,2]
[374722431,1753429174485,-156.87206231,0.00017018,2]
[374722432,1753429178056,-160.05037009,0.00017017,2]
[374722433,1753429178082,-210.60405333,0.00017018,2]
[374722434,1753429183377,-92.52388436,0.00017018,2]
[374722435,1753429183401,-124.9207435,0.00017018,2]
[374722436,1753429198895,-258.13342086,0.00017017,2]
[374722437,1753429207646,-191.20274436,0.00017017,2]
[374722438,1753429215245,-108.79725564,0.00017017,2]
[374722439,1753429215268,-122.49358896,0.00017017,2]
[374722440,1753429224362,-78.50641104,0.00017017,2]
[374722441,1753429224385,-79.85384545,0.00017017,2]
[374722442,1753429230898,-158.0491841,0.00017017,2]
[374722444,1753429233721,-429.00134431,0.00017017,2]
[374722445,1753429241907,-207.42720494,0.00017017,2]
[374722446,1753429246595,-176.71233421,0.00017017,2]
[374722447,1753429248165,-148.95608699,0.00017017,2]
[374722448,1753429248190,-7.22198653,0.00017017,2]
[374722449,1753429248216,-153.42509559,0.00017017,2]
[374722450,1753429248241,-134.58469488,0.00017017,2]
[374722451,1753429258212,-195.17283227,0.00017017,2]
[374722452,1753429264445,-300.0,0.00017017,2]
[374722453,1753429264470,-143.75040241,0.00017017,2]
[374722454,1753429274384,-26.11013289,0.00017017,2]
[374722455,1753429274409,-186.04413217,0.00017017,2]
[374722456,1753429274433,-111.07938884,0.00017017,2]
[374722457,1753429288435,-184.24512919,0.00017017,2]
[374722460,1753429294558,-156.13822283,0.00017017,2]
[374722461,1753429305754,-300.0,0.00017017,2]
[374722462,1753429310734,-241.15526411,0.00017017,2]
[374722464,1753429319223,-0.46138387,0.00017017,2]
[374722465,1753429319246,-261.30562834,0.00017017,2]
[374722466,1753429321894,-139.01390632,0.00017017,2]
[374722467,1753429321918,-37.5002562,0.00017017,2]
[374722468,1753429328486,-300.0,0.00017017,2]
[374722469,1753429328510,-109.10980316,0.00017017,2]
[374722470,1753429335564,-153.38994064,0.00017017,2]
[374722471,1753429335588,-145.29658316,0.00017017,2]
[374722472,1753429347730,-143.3869174,0.00017017,2]
[374722473,1753429347754,-47.50327944,0.00017017,2]
[374722474,1753429350950,-130.79727631,0.00017017,2]
[374722475,1753429350973,-135.61334602,0.00017017,2]
[374722476,1753429359554,-28.02003507,0.00017017,2]
[374722477,1753429359578,-300.0,0.00017017,2]
[374722478,1753429359600,-163.06625092,0.00017017,2]
[374722479,1753429369280,-190.89019684,0.00017017,2]
[374722480,1753429378546,-121.24423856,0.00017017,2]
[374722481,1753429378569,-349.1902678,0.00017017,2]
[374722482,1753429405791,-159.85245639,0.00017017,2]
[374722483,1753429415214,-140.14754361,0.00017017,2]
[374722484,1753429415237,-94.08915195,0.00017017,2]
[374722485,1753429415259,-122.82014128,0.00017017,2]
[374722487,1753429482092,7839.4366258,0.00016267,2]
[374722488,1753429482119,10000.0,0.00016267,2]
[374722489,1753429482145,7060.5633742,0.00016267,2]
[374722490,1753429484357,-275.91823218,0.00017017,2]
[374722491,1753429488875,-24.08176782,0.00017017,2]
[374722492,1753429488900,-131.95061867,0.00017017,2]
[374722494,1753429551768,438.39852394,0.00016922,2]
[374722499,1753429775909,-203.99761351,0.00017015,2]
[374722500,1753429783528,-85.86317487,0.00017015,2]
[374722501,1753429783552,-139.30359106,0.00017015,2]
[374722502,1753429790903,-160.69640894,0.00017015,2]
[374722503,1753429790926,-106.48682513,0.00017016,2]
[374722504,1753429792474,-182.14,0.00017016,2]
[374722505,1753429798979,-312.88771902,0.00017016,2]
[374722506,1753429807792,-154.40062526,0.00017015,2]
[374722507,1753429817325,-145.59937474,0.00017015,2]
[374722508,1753429817349,-136.64091664,0.00017015,2]
[374722509,1753429822381,-161.04010148,0.00017015,2]
[374722510,1753429824695,-2.31898188,0.00017015,2]
[374722511,1753429824718,-149.63101812,0.00017015,2]
[374722513,1753429831876,-150.36898188,0.00017015,2]
[374722514,1753429831903,-96.25101812,0.00017015,2]
[374722523,1753429832805,-203.74898188,0.00017015,2]
[374722525,1753429832815,-1200.0,0.00017015,2]
[374722526,1753429832826,-300.0,0.00017015,2]
[374722527,1753429832836,-7886.31279365,0.00017016,2]
[374722554,1753429834024,-166.21942198,0.00017015,2]
[374722555,1753429834049,-59.68294825,0.00017015,2]
[374722614,1753429839120,-138.25988383,0.00017015,2]
[374722618,1753429839146,-145.64808288,0.00017015,2]
[374722791,1753429841892,-354.35191712,0.00017015,2]
[374722793,1753429841902,-500.0,0.00017015,2]
[374722795,1753429841912,-500.0,0.00017015,2]
[374722797,1753429841922,-500.0,0.00017015,2]
[374722799,1753429841933,-500.0,0.00017015,2]
[374722801,1753429841942,-353.11014448,0.00017015,2]
[374722804,1753429841955,-82.67737714,0.00017015,2]
[374722806,1753429841966,-513.09391223,0.00017016,2]
[374722808,1753429841979,-888.53800703,0.00017016,2]
[374722810,1753429841989,-28.23606722,0.00017017,2]
[374722815,1753429842033,-339.03092592,0.00017017,2]
[374723007,1753429843923,-92.73300686,0.00017017,2]
[374723010,1753429843947,-246.29791906,0.00017017,2]
[374723034,1753429844206,-213.70208094,0.00017017,2]
[374723035,1753429844216,-460.0,0.00017017,2]
[374723036,1753429844226,-460.0,0.00017017,2]
[374723037,1753429844235,-460.0,0.00017018,2]
[374723038,1753429844245,-460.0,0.00017018,2]
[374723039,1753429844254,-460.0,0.00017018,2]
[374723040,1753429844264,-460.0,0.00017018,2]
[374723041,1753429844273,-460.0,0.00017018,2]
[374723042,1753429844282,-460.0,0.00017018,2]
[374723043,1753429844292,-460.0,0.00017018,2]
[374723044,1753429844301,-460.0,0.00017018,2]
[374723045,1753429844310,-298.09336996,0.00017018,2]
[374723046,1753429844319,-460.0,0.00017018,2]
[374723047,1753429844328,-460.0,0.00017018,2]
[374723048,1753429844338,-460.0,0.00017018,2]
[374723049,1753429844347,-460.0,0.00017018,2]
[374723050,1753429844356,-460.0,0.00017021,2]
[374723051,1753429844365,-460.0,0.00017021,2]
[374723052,1753429844375,-460.0,0.00017021,2]
[374723053,1753429844385,-463.01,0.00017021,2]
[374723054,1753429844394,-460.0,0.00017021,2]
[374723055,1753429844403,-460.0,0.00017021,2]
[374723056,1753429844414,-558.80618927,0.00017021,2]
[374723057,1753429844424,-460.0,0.00017021,2]
[374723058,1753429844433,-460.0,0.00017021,2]
[374723059,1753429844443,-299.1726966,0.00017022,2]
[374723060,1753429844452,-460.0,0.00017022,2]
[374723062,1753429844462,-460.0,0.00017022,2]
[374723064,1753429844471,-460.0,0.00017022,2]
[374723066,1753429844480,-460.0,0.00017022,2]
[374723068,1753429844490,-460.39025777,0.00017023,2]
[374723070,1753429844499,-460.0,0.00017291,2]
[374723072,1753429844509,-499.96,0.00017291,2]
[374723074,1753429844518,-460.0,0.00017291,2]
[374723076,1753429844527,-460.0,0.00017291,2]
[374723078,1753429844537,-460.0,0.00017291,2]
[374723080,1753429844546,-460.0,0.00017291,2]
[374723082,1753429844558,-594.65,0.00017291,2]
[374723084,1753429844567,-460.0,0.00017291,2]
[374723086,1753429844576,-460.0,0.00017291,2]
[374723088,1753429844586,-460.0,0.00017291,2]
[374723090,1753429844595,-460.0,0.00017292,2]
[374723092,1753429844605,-460.0,0.00017292,2]
[374723094,1753429844614,-460.0,0.00017292,2]
[374723096,1753429844623,-548.6,0.00017292,2]
[374723098,1753429844633,-460.0,0.00017292,2]
[374723100,1753429844643,-460.0,0.00017292,2]
[374723102,1753429844653,-460.0,0.00017292,2]
[374723104,1753429844662,-460.0,0.00017292,2]
[374723106,1753429844673,-507.5,0.00017292,2]
[374723108,1753429844682,-460.0,0.00017295,2]
[374723110,1753429844692,-460.0,0.00017295,2]
[374723112,1753429844701,-460.0,0.00017295,2]
[374723114,1753429844711,-352.87,0.00017295,2]
[374723116,1753429844720,-468.34,0.00017295,2]
[374723118,1753429844730,-460.0,0.00017295,2]
[374723120,1753429844740,-460.0,0.00017296,2]
[374723122,1753429844749,-500.0,0.00017518,2]
[374723124,1753429844759,-501.21104609,0.00017518,2]
[374723126,1753429844769,-500.0,0.00017538,2]
[374723128,1753429844781,-500.0,0.0001756,2]
[374723130,1753429844791,-500.0,0.0001756,2]
[374723132,1753429844802,-460.0,0.00017565,2]
[374723134,1753429844812,-460.0,0.00017565,2]
[374723136,1753429844822,-460.0,0.00017565,2]
[374723138,1753429844831,-460.0,0.00017565,2]
[374723140,1753429844840,-460.0,0.00017565,2]
[374723141,1753429844851,-460.0,0.00017565,2]
[374723144,1753429844861,-460.0,0.00017565,2]
[374723145,1753429844870,-581.08,0.00017566,2]
[374723147,1753429844882,-460.0,0.00017566,2]
[374723149,1753429844892,-460.0,0.00017566,2]
[374723151,1753429844901,-460.0,0.00017566,2]
[374723153,1753429844911,-460.0,0.00017566,2]
[374723155,1753429844920,-460.0,0.00017566,2]
[374723157,1753429844931,-460.0,0.00017569,2]
[374723159,1753429844940,-460.0,0.00017569,2]
[374723161,1753429844951,-535.12,0.00017569,2]
[374723164,1753429844960,-460.0,0.00017569,2]
[374723165,1753429844970,-447.7579135,0.00017595,2]
[374723167,1753429844980,-4244.57175043,0.00017605,2]
[374723168,1753429844991,-501.1827514,0.00017664,2]
[374723169,1753429845004,-500.0,0.00017664,2]
[374723170,1753429845013,-500.0,0.00017664,2]
[374723171,1753429845022,-460.0,0.00017839,2]
[374723172,1753429845032,-301.82,0.00017839,2]
[374723173,1753429845041,-352.75,0.00017839,2]
[374723174,1753429845051,-270.21,0.00017839,2]
[374723175,1753429845060,-460.0,0.00017839,2]
[374723176,1753429845069,-460.0,0.00017839,2]
[374723177,1753429845079,-460.0,0.00017839,2]
[374723178,1753429845088,-460.0,0.0001784,2]
[374723179,1753429845097,-460.0,0.0001784,2]
[374723180,1753429845107,-460.0,0.0001784,2]
[374723181,1753429845116,-395.05,0.0001784,2]
[374723182,1753429845125,-460.0,0.0001784,2]
[374723183,1753429845134,-460.0,0.00017843,2]
[374723184,1753429845143,-460.0,0.00017843,2]
[374723185,1753429845153,-460.0,0.00017843,2]
[374723186,1753429845162,-458.85848158,0.00018107,2]
[374723187,1753429845171,-364.95972321,0.00018108,2]
[374723188,1753429845181,-1007.09021832,0.00018108,2]
[374723189,1753429845191,-460.0,0.00018113,2]
[374723190,1753429845200,-168.59,0.00018113,2]
[374723191,1753429845209,-460.0,0.00018113,2]
[374723192,1753429845219,-460.0,0.00018113,2]
[374723193,1753429845228,-441.34,0.00018114,2]
[374723194,1753429845238,-460.0,0.00018114,2]
[374723195,1753429845247,-565.88,0.00018114,2]
[374723196,1753429845256,-598.43,0.00018114,2]
[374723197,1753429845266,-460.0,0.00018117,2]
[374723198,1753429845275,-460.0,0.00018117,2]
[374723199,1753429845285,-460.0,0.00018117,2]
[374723200,1753429845294,-438.39852392,0.00018198,2]
[374723201,1753429845304,-535.95105354,0.00018212,2]
[374723202,1753429845313,-160.0,0.00018275,2]
[374723203,1753429845323,-10000.0,0.0001829,2]
[374723204,1753429845334,-850.41605585,0.00018322,2]
[374723205,1753429845345,-460.0,0.00018387,2]
[374723206,1753429845354,-460.0,0.00018387,2]
[374723207,1753429845364,-460.0,0.00018387,2]
[374723208,1753429845373,-183.2,0.00018388,2]
[374723209,1753429845383,-164.22193535,0.00018391,2]
[374723210,1753429845393,-470.3792565,0.00018391,2]
[374723211,1753429845403,-258.34554421,0.00018391,2]
[374723212,1753429845413,-300.0,0.00018584,2]
[374723213,1753429845422,-420.0,0.00018584,2]
[374723214,1753429845432,-300.0,0.00018584,2]
[374723215,1753429845441,-460.0,0.00018661,2]
[374723216,1753429845451,-157.93,0.00018661,2]
[374723217,1753429845461,-460.0,0.00018661,2]
[374723218,1753429845471,-1197.0,0.00018676,2]
[374723219,1753429845480,-159.0,0.00018712,3]
[374723220,1753429845490,-840.4016166,0.00018821,2]
[374723221,1753429845499,-160.0,0.00018822,2]
[374723222,1753429845509,-260.0,0.00018823,2]
[374723223,1753429845518,-802.14183505,0.000189,2]
[374723224,1753429845528,-900.97631332,0.000189,2]
[374723225,1753429845537,-460.0,0.00018935,2]
[374723226,1753429845547,-900.97631303,0.00019141,2]
[374723227,1753429845556,-194.585,0.00019178,2]
[374723228,1753429845565,-164.83,0.00019209,2]
[374723229,1753429845575,-360.0,0.00019371,2]
[374723230,1753429845584,-900.97631303,0.00019383,2]
[374723231,1753429845594,-438.39852392,0.00019473,2]
[374723232,1753429845604,-454.19,0.00019608,2]
[374723233,1753429845613,-752.830874,0.00019616,2]
[374723234,1753429845623,-900.97631303,0.00019624,2]
[374723235,1753429845632,-365.395952,0.0001965,2]
[374723236,1753429845642,-210.06045057,0.00019737,2]
[374723237,1753429845651,-900.97631303,0.00019866,2]
[374723238,1753429845660,-460.0,0.00019919,2]
[374723239,1753429845669,-250.0,0.00020027,2]
[374723240,1753429845681,-178.674,0.00020039,2]
[374723241,1753429845690,-1486.957,0.00020039,2]
[374723242,1753429845699,-285.9,0.00020072,3]
[374723243,1753429845708,-900.97631303,0.00020107,2]
[374723244,1753429845718,-601.602172,0.00020187,2]
[374723245,1753429845727,-587.0,0.00020297,2]
[374723246,1753429845736,-500.0,0.00020313,2]
[374723247,1753429845746,-900.97631303,0.00020348,3]
[374723248,1753429845755,-800.0,0.00020354,2]
[374723249,1753429845765,-240.73536208,0.00020435,2]
[374723250,1753429845775,-560.0,0.00020467,2]
[374723251,1753429845784,-275.72,0.000205,2]
[374723252,1753429845794,-908.38,0.00020542,2]
[374723253,1753429845806,-3801.642,0.00020562,2]
[374723254,1753429845816,-215.0738,0.00020562,2]
[374723255,1753429845826,-16141.34092797,0.00020562,2]
[374724381,1753429871191,-178.34470795,0.00017015,2]
[374724558,1753429873240,-253.07573178,0.00017015,2]
[374724877,1753429876477,-68.57956027,0.00017015,2]
[374724880,1753429876503,-211.71582053,0.00017015,2]
[374725230,1753429879978,-162.67666482,0.00017015,2]
[374725661,1753429884552,-125.60751465,0.00017015,2]
[374725665,1753429884574,-92.50181542,0.00017015,2]
[374726042,1753429888491,10000.0,0.00023,30]
[374726131,1753429889636,-190.84566382,0.00017015,2]
[374726386,1753429892587,-206.68027152,0.00017015,2]
[374726588,1753429894644,-23.81991823,0.00017015,2]
[374726592,1753429894667,-366.34158978,0.00017015,2]
[374726962,1753429898698,-5.70641618,0.00017015,2]
[374726965,1753429898721,-354.04703301,0.00017015,2]
[374727049,1753429900889,-145.95296699,0.00017015,2]
[374727052,1753429900915,-237.05409226,0.00017015,2]
[374727251,1753429902957,-165.65999184,0.00017015,2]
[374727524,1753429905659,-97.2859159,0.00017015,2]
[374727528,1753429905691,-145.56280343,0.00017015,2]
[374728068,1753429911587,-215.04589078,0.00017015,2]
[374728204,1753429913032,-139.39130579,0.00017015,2]
[374728208,1753429913055,-202.79940702,0.00017015,2]
[374728312,1753429914059,2504.05,0.00023,30]
[374728543,1753429916443,-163.27033021,0.00017015,2]
[374728840,1753429919890,-133.93026277,0.00017015,2]
[374728843,1753429919916,-18.24093032,0.00017015,2]
[374729431,1753429925893,-212.1101717,0.00017014,2]
[374729650,1753429928471,-87.8898283,0.00017014,2]
[374729653,1753429928496,-64.84554451,0.00017015,2]
[374730055,1753429932696,-143.07244602,0.00017015,2]
[374730059,1753429932720,-160.05986185,0.00017015,2]
[374730222,1753429934301,-204.34444648,0.00017015,2]
[374730375,1753429935942,-170.07113935,0.00017015,2]
[374730379,1753429935967,-150.181128,0.00017015,2]
[374730904,1753429941937,-168.21720761,0.00017015,2]
[374731183,1753429944658,-181.60166439,0.00017015,2]
[374731187,1753429944682,-8.59508244,0.00017015,2]
[374731532,1753429948692,-260.03492048,0.00017015,2]
[374731796,1753429951483,799.9172694,0.00017,2]
[374731840,1753429951935,-231.36999708,0.00017015,2]
[374731844,1753429951961,-129.84613005,0.00017015,2]
[374732376,1753429957709,-264.32063002,0.00017017,2]
[374732623,1753429960285,-199.92802832,0.00017017,2]
[374732626,1753429960308,-11.34793739,0.00017017,2]
[374732994,1753429963868,-208.22341748,0.00017017,2]
[374733220,1753429966309,-240.42864513,0.00017017,2]
[374733221,1753429966331,-368.40893018,0.00017017,2]
[374733545,1753429970003,-91.59106982,0.00017017,2]
[374733548,1753429970026,-218.99066249,0.00017017,2]
[374733756,1753429972835,-189.93047499,0.00017017,2]
[374733852,1753429974417,-51.55225515,0.00017017,2]
[374733853,1753429974442,-168.66845241,0.00017017,2]
[374734015,1753429976611,-282.61357251,0.00017017,2]
[374734360,1753429980654,-8.71797508,0.00017017,2]
[374734364,1753429980678,-451.28202492,0.00017017,2]
[374734536,1753429982392,-8.71797508,0.00017017,2]
[374734539,1753429982415,-202.07786949,0.00017017,2]
[374734542,1753429982437,-93.34415543,0.00017017,2]
[374735118,1753429988911,-212.0,0.00017016,2]
[374735268,1753429990453,-88.0,0.00017016,2]
[374735269,1753429990476,-207.86,0.00017017,2]
[374735874,1753429996704,-158.79584457,0.00017017,2]
[374735877,1753429996728,-111.26415543,0.00017017,2]
[374736150,1753430000074,-191.36115455,0.00017017,2]
[374736529,1753430003917,-157.37469002,0.00017017,2]
[374736532,1753430003945,-72.35497735,0.00017017,2]
[374736803,1753430007118,-427.64502265,0.00017017,2]
[374736806,1753430007142,-72.35497735,0.00017017,2]
[374737148,1753430010705,-186.30898049,0.00017017,2]
[374737432,1753430013682,-151.5912497,0.00017017,2]
[374737545,1753430015165,-160.79712937,0.00017017,2]
[374737549,1753430015191,-75.35766964,0.00017017,2]
[374737722,1753430017320,-171.99332157,0.00017017,2]
[374737725,1753430017347,-6.92460471,0.00017017,2]
[374737851,1753430019261,-297.95235804,0.00017017,2]
[374738256,1753430024361,-195.12303725,0.00017017,2]
[374738260,1753430024386,-16.40251843,0.00017017,2]
[374738409,1753430025874,-269.1863718,0.00017017,2]
[374738848,1753430030402,-214.41110977,0.00017017,2]
[374738851,1753430030425,-3.80621635,0.00017017,2]
[374739929,1753430043747,-300.0,0.00017016,2]
[374739933,1753430043776,-123.67329522,0.00017017,2]
[374740214,1753430046732,-372.52048843,0.00017017,2]
[374740217,1753430046758,-4.64908264,0.00017017,2]
[374740679,1753430051917,-226.13727238,0.00017017,2]
[374741016,1753430055513,-269.21364498,0.00017017,2]
[374741020,1753430055543,-94.26322655,0.00017017,2]
[374741454,1753430059977,-249.72485504,0.00017017,2]
[374741625,1753430062137,-156.01191841,0.00017017,2]
[374741629,1753430062160,-6.21484144,0.00017017,2]
[374741932,1753430065311,-168.86465845,0.00017017,2]
[374742119,1753430067108,-194.37240103,0.00017017,2]
[374742670,1753430073338,1701.12083246,0.00017,2]
[374742677,1753430073398,10000.0,0.00017,2]
[374742684,1753430073459,10000.0,0.00017,2]
[374742691,1753430073520,10000.0,0.00017,2]
[374742698,1753430073580,10000.0,0.00017,2]
[374742705,1753430073639,10000.0,0.00017,2]
[374742712,1753430073699,10000.0,0.00017,2]
[374742718,1753430073754,1343.58175783,0.00017,2]
[374742821,1753430074756,-211.27596571,0.00017016,2]
[374742825,1753430074781,-70.60408067,0.00017016,2]
[374743030,1753430076789,-224.44582273,0.00017016,2]
[374743629,1753430083481,-200.8739671,0.00017016,2]
[374743840,1753430085530,-4.0761295,0.00017016,2]
[374743843,1753430085554,-173.03192537,0.00017016,2]
[374743978,1753430087014,-265.40897899,0.00017016,2]
[374744404,1753430091603,-61.55909564,0.00017016,2]
[374744408,1753430091629,-138.52501134,0.00017016,2]
[374744614,1753430093784,-318.85542016,0.00017016,2]
[374745006,1753430097744,-42.6195685,0.00017016,2]
[374745010,1753430097768,-170.3424691,0.00017016,2]
[374745450,1753430102616,-207.60489686,0.00017016,2]
[374745602,1753430104113,-122.05263404,0.00017016,2]
[374745606,1753430104141,-160.83931109,0.00017016,2]
[374745789,1753430106225,-238.98943654,0.00017016,2]
[374746130,1753430110225,-223.76104305,0.00017016,2]
[374746134,1753430110251,-232.13883188,0.00017016,2]
[374746367,1753430112572,1264.0108383,0.0001615,2]
[374746379,1753430112766,-159.09059563,0.00017016,2]
[374746382,1753430112792,-104.37762081,0.00017016,2]
[374746573,1753430115501,-342.18570822,0.00017016,2]
[374746649,1753430117241,-53.43667097,0.00017016,2]
[374746650,1753430117267,-263.29756285,0.00017016,2]
[374747005,1753430121731,-331.27715084,0.00017016,2]
[374747232,1753430123908,-167.61579441,0.00017016,2]
[374747517,1753430126892,-219.99682887,0.00017016,2]
[374747762,1753430130004,-32.81266303,0.00017016,2]
[374747765,1753430130028,-145.30729059,0.00017016,2]
[374748029,1753430132600,-154.69270941,0.00017016,2]
[374748033,1753430132626,-215.2075432,0.00017016,2]
[374748313,1753430135591,-244.7924568,0.00017016,2]
[374748317,1753430135619,-0.43436699,0.00017016,2]
[374748639,1753430139334,-219.3784528,0.00017016,2]
[374748970,1753430142724,-308.71718021,0.00017016,2]
[374748973,1753430142748,-143.08256965,0.00017016,2]
[374749239,1753430145504,-256.52692319,0.00017016,2]
[374749352,1753430147021,-60.39050716,0.00017016,2]
[374749355,1753430147044,-120.59527145,0.00017016,2]
[374749544,1753430150440,-154.92638063,0.00017016,2]
[374749545,1753430153349,-184.47834792,0.00017016,2]
[374749546,1753430153374,-99.31501536,0.00017017,2]
[374749547,1753430158171,-154.92638066,0.00017016,2]
[374749548,1753430160315,-305.07361934,0.00017016,2]
[374749549,1753430160339,-101.4778377,0.00017016,2]
[374749550,1753430162254,-172.03086876,0.00017016,2]
[374749551,1753430163704,472.5440475,0.00016917,2]
[374749552,1753430164931,-186.49129354,0.00017016,2]
[374749553,1753430164955,-23.11337378,0.00017016,2]
[374749554,1753430182320,547.30217475,0.00016917,2]
[374749555,1753430188074,161.68098116,0.00016916,2]
[374749556,1753430189104,161.68098112,0.00016916,2]
[374749557,1753430189487,161.68098112,0.00016917,2]
[374749558,1753430189837,161.68098112,0.00016917,2]